bitfinex-derivatives/quotes_BTCF0:USTF0_20250922
["timestamp","ask_amount","ask_price","bid_price","bid_amount"]
[1758561243434,1.79487976,112410.0,112400.0,0.29017]
[1758561244050,1.79479976,112410.0,112400.0,0.29017]
[1758561245237,1.8265075,112410.0,112400.0,0.29017]
[1758561246242,1.79479976,112410.0,112400.0,0.29017]
[1758561246447,1.43443628,112410.0,112400.0,0.29017]
[1758561246751,1.82651867,112410.0,112400.0,0.29017]
[1758561247450,1.77901841,112410.0,112400.0,0.29017]
[1758561249246,1.82651867,112410.0,112400.0,0.29017]
[1758561249444,1.43443628,112410.0,112400.0,0.29017]
[1758561249645,1.82651867,112410.0,112400.0,0.29017]
[1758561249845,0.89095087,112410.0,112400.0,0.1290655]
[1758561250147,1.68965061,112410.0,112400.0,0.1290655]
[1758561250349,0.05884931,112410.0,112400.0,1.13194789]
[1758561250648,0.04571302,112410.0,112400.0,1.65724128]
[1758561251248,0.04571302,112410.0,112400.0,1.29644128]
[1758561252250,0.05850321,112410.0,112400.0,1.29644128]
[1758561255848,0.05850321,112410.0,112400.0,0.7090655]
[1758561256155,0.05850321,112410.0,112400.0,1.29644128]
[1758561257155,0.4410788,112410.0,112400.0,1.00275339]
[1758561257853,0.4410788,112410.0,112400.0,0.7090655]
[1758561258349,0.4410788,112410.0,112400.0,1.00275339]
[1758561259247,0.8018788,112410.0,112400.0,0.30017]
[1758561259458,0.8018788,112410.0,112400.0,0.04017]
[1758561259654,0.8018788,112410.0,112400.0,0.1286656]
[1758561259849,0.8018788,112410.0,112400.0,0.1290656]
[1758561262554,0.8018788,112410.0,112400.0,0.04017]
[1758561262752,0.8018788,112410.0,112400.0,0.42275349]
[1758561263055,1.6473588,112410.0,112400.0,0.42275349]
[1758561263751,0.8018788,112410.0,112400.0,0.42275349]
[1758561263957,1.5584311,112410.0,112400.0,0.42275349]
[1758561264152,1.6473188,112410.0,112400.0,0.42275349]
[1758561264846,1.35363091,112410.0,112400.0,0.42275349]
[1758561265050,1.6473188,112410.0,112400.0,0.42275349]
[1758561266965,1.35363091,112410.0,112400.0,0.42275349]
[1758561267254,1.6473188,112410.0,112400.0,0.42275349]
[1758561267951,0.14739091,112410.0,112400.0,0.42275349]
[1758561268154,0.05850321,112410.0,112400.0,0.71644138]
[1758561268456,0.4410788,112410.0,112400.0,0.42275349]
[1758561269857,0.3521911,112410.0,112400.0,0.42275349]
[1758561270456,0.4410788,112410.0,112400.0,0.42275349]
[1758561271156,0.14739091,112410.0,112400.0,0.42275349]
[1758561271356,0.4410788,112410.0,112400.0,0.1290656]
[1758561271559,0.8018788,112410.0,112400.0,0.42275349]
[1758561271756,0.8018788,112410.0,112400.0,0.04017]
[1758561272060,1.3772856,112410.0,112400.0,0.01842]
[1758561272255,1.3772856,112410.0,112400.0,0.04124]
[1758561272559,1.3772856,112410.0,112400.0,0.01842]
[1758561272756,1.3772856,112410.0,112400.0,0.01802]
[1758561273054,1.39306695,112410.0,112400.0,0.0054]
[1758561273558,1.34556669,112410.0,112400.0,0.0054]
[1758561274662,1.34556669,112410.0,112400.0,0.005]
[1758561274859,1.34556669,112410.0,112400.0,0.0054]
[1758561275263,1.4088804,112410.0,112400.0,0.0054]
[1758561275761,1.34556669,112410.0,112400.0,0.0054]
[1758561277155,1.34556669,112410.0,112400.0,0.005]
[1758561277351,1.34556669,112410.0,112400.0,0.0054]
[1758561278562,0.75819091,112410.0,112400.0,0.0054]
[1758561278763,1.34556669,112410.0,112400.0,0.0054]
[1758561279362,1.09556669,112410.0,112400.0,0.0054]
[1758561280061,1.34556669,112410.0,112400.0,0.0054]
[1758561280257,1.63925458,112410.0,112400.0,0.0054]
[1758561280659,1.63925458,112410.0,112400.0,0.005]
[1758561280961,1.63925458,112410.0,112400.0,0.0054]
[1758561282267,1.70256829,112410.0,112400.0,0.0054]
[1758561282569,1.63925458,112410.0,112400.0,0.0054]
[1758561282958,1.70256829,112410.0,112400.0,0.0054]
[1758561283565,1.68675277,112410.0,112400.0,0.0054]
[1758561283973,2.53135277,112410.0,112400.0,0.0054]
[1758561284267,2.53135277,112410.0,112400.0,0.005]
[1758561284468,2.53135277,112410.0,112400.0,0.0054]
[1758561285569,1.68675277,112410.0,112400.0,0.0054]
[1758561285868,2.53131277,112410.0,112400.0,0.0054]
[1758561286970,1.68675277,112410.0,112400.0,0.0054]
[1758561287171,2.53123277,112410.0,112400.0,0.0054]
[1758561287672,0.8056891,112410.0,112400.0,0.0054]
[1758561287971,2.23742488,112410.0,112400.0,0.0054]
[1758561289367,1.39306488,112410.0,112400.0,0.0054]
[1758561289673,1.98742488,112410.0,112400.0,0.04142]
[1758561289873,2.01909673,112410.0,112400.0,0.04142]
[1758561290073,1.17473673,112410.0,112400.0,0.04142]
[1758561290474,2.01897673,112410.0,112400.0,0.04142]
[1758561290774,1.38410276,112410.0,112400.0,0.04142]
[1758561291076,1.97147854,112410.0,112400.0,0.04142]
[1758561291267,2.01897673,112410.0,112400.0,0.04142]
[1758561291873,1.17473673,112410.0,112400.0,0.04142]
[1758561292075,2.01889673,112410.0,112400.0,0.04142]
[1758561292270,1.43152095,112410.0,112400.0,0.04142]
[1758561292472,2.01885673,112410.0,112400.0,0.04142]
[1758561293472,1.98718488,112410.0,112400.0,0.04142]
[1758561293976,1.14306488,112410.0,112400.0,0.04142]
[1758561294165,1.98714488,112410.0,112400.0,0.04142]
[1758561295378,1.98714488,112410.0,112400.0,0.0182]
[1758561295576,1.98714488,112410.0,112400.0,0.04087]
[1758561298172,1.14306488,112410.0,112400.0,0.04087]
[1758561298378,0.84937699,112410.0,112400.0,0.3797655]
[1758561298680,1.67738694,112410.0,112400.0,0.3797655]
[1758561300078,1.58849924,112410.0,112400.0,0.3797655]
[1758561300975,1.58849924,112410.0,112400.0,0.29087]
[1758561301179,1.67738674,112410.0,112400.0,0.3797655]
[1758561305481,1.67738674,112410.0,112400.0,0.29087]
[1758561305670,1.97107463,112410.0,112400.0,0.29087]
[1758561306073,1.67738674,112410.0,112400.0,0.29087]
[1758561306481,1.97107463,112410.0,112400.0,0.29087]
[1758561306984,1.67738674,112410.0,112400.0,0.3797655]
[1758561307579,1.97107463,112410.0,112400.0,0.29087]
[1758561307879,1.97107463,112410.0,112400.0,0.29047]
[1758561308280,2.01857282,112410.0,112400.0,0.29087]
[1758561310582,1.82299356,112410.0,112400.0,0.29087]
[1758561312879,1.77549537,112410.0,112400.0,0.29087]
[1758561313281,2.43308194,112410.0,112400.0,0.0054]
[1758561313483,2.38558375,112410.0,112400.0,0.0054]
[1758561313782,1.99378723,112410.0,112400.0,0.005]
[1758561313982,1.99378723,112410.0,112400.0,0.0054]
[1758561314180,2.05710094,112410.0,112400.0,0.0054]
[1758561314578,2.44889746,112410.0,112400.0,0.0054]
[1758561314885,2.05710094,112410.0,112400.0,0.0054]
[1758561315485,2.44889746,112410.0,112400.0,0.0054]
[1758561316088,2.38558375,112410.0,112400.0,0.0054]
[1758561316688,1.54178375,112410.0,112400.0,0.0054]
[1758561316881,1.99290723,112410.0,112400.0,0.0054]
[1758561317689,2.38470375,112410.0,112400.0,0.0054]
[1758561317889,2.38458375,112410.0,112400.0,0.0054]
[1758561318693,2.44789746,112410.0,112400.0,0.0054]
[1758561318888,2.05610094,112410.0,112400.0,0.0054]
[1758561319089,1.21330094,112410.0,112400.0,0.0054]
[1758561319491,2.05606094,112410.0,112400.0,0.0054]
[1758561319895,2.05602094,112410.0,112400.0,0.0054]
[1758561320790,1.21330094,112410.0,112400.0,0.0054]
[1758561321386,0.82150442,112410.0,112400.0,0.0054]
[1758561321593,2.05594094,112410.0,112400.0,0.0054]
[1758561322692,1.21330094,112410.0,112400.0,0.01935]
[1758561322998,2.05586094,112410.0,112400.0,0.04253]
[1758561323584,0.89998723,112410.0,112400.0,0.04253]
[1758561323797,1.79017486,112410.0,112400.0,0.04253]
[1758561324797,0.94761486,112410.0,112400.0,0.04253]
[1758561324998,1.79013486,112410.0,112400.0,0.04253]
[1758561325186,0.55581834,112410.0,112400.0,0.04253]
[1758561325392,0.94761486,112410.0,112400.0,0.04253]
[1758561325591,1.79005486,112410.0,112400.0,0.04253]
[1758561327002,1.79005486,112410.0,112400.0,0.01935]
[1758561327393,1.79005486,112410.0,112400.0,0.0054]
[1758561329299,2.18185138,112410.0,112400.0,0.0054]
[1758561329800,2.18185138,112410.0,112400.0,0.005]
[1758561329994,2.18185138,112410.0,112400.0,0.0054]
[1758561331501,0.10997924,112400.0,112390.0,0.0136]
[1758561331699,1.32671293,112400.0,112390.0,0.0136]
[1758561332097,1.32671293,112400.0,112390.0,0.0008]
[1758561332495,1.32671293,112400.0,112390.0,0.01356]
[1758561332690,1.36546279,112400.0,112390.0,0.01456]
[1758561332995,1.37646279,112400.0,112390.0,0.01756]
[1758561333503,1.32883516,112400.0,112390.0,0.01756]
[1758561334091,1.32883516,112400.0,112390.0,1e-07]
[1758561334293,0.1115992,112370.0,112360.0,0.02511356]
[1758561334489,1.24970874,112370.0,112360.0,0.02341356]
[1758561334695,2.09166874,112370.0,112360.0,0.02341356]
[1758561334894,2.09166874,112370.0,112360.0,0.02381356]
[1758561335097,2.1636587,112370.0,112360.0,0.02341356]
[1758561335296,1.3216987,112370.0,112360.0,0.02381356]
[1758561335497,2.1636187,112370.0,112360.0,0.02381356]
[1758561335694,1.3216987,112370.0,112360.0,0.02381356]
[1758561335897,1.3286987,112370.0,112360.0,0.02781356]
[1758561336197,1.3286987,112370.0,112360.0,0.27781356]
[1758561336198,2.1705787,112370.0,112360.0,0.27781356]
[1758561336901,1.3286987,112370.0,112360.0,0.27781356]
[1758561337102,2.1706187,112370.0,112360.0,0.27781356]
[1758561337502,1.3286987,112370.0,112360.0,0.27781356]
[1758561337700,2.1705387,112370.0,112360.0,0.27781356]
[1758561338408,1.3286987,112370.0,112360.0,0.27781356]
[1758561338702,2.1705387,112370.0,112360.0,0.27781356]
[1758561339001,1.3286987,112370.0,112360.0,0.27781356]
[1758561339403,2.1704587,112370.0,112360.0,0.02781356]
[1758561340503,1.77866218,112370.0,112360.0,0.02781356]
[1758561340704,2.1704587,112370.0,112360.0,0.02781356]
[1758561341602,1.3286987,112370.0,112360.0,0.02781356]
[1758561341796,0.93690208,112370.0,112360.0,0.36674056]
[1758561342006,0.82530298,112370.0,112360.0,0.36674056]
[1758561342200,1.75586208,112370.0,112360.0,0.36674056]
[1758561342501,1.77854208,112370.0,112360.0,0.36674056]
[1758561343400,2.1703386,112370.0,112360.0,0.36674056]
[1758561343698,0.46450298,112370.0,112360.0,0.75853708]
[1758561344102,0.55342208,112370.0,112360.0,0.75853708]
[1758561344403,0.55342208,112370.0,112360.0,0.36674056]
[1758561346506,0.46450298,112370.0,112360.0,0.36674056]
[1758561346692,0.10370298,112370.0,112360.0,0.36674056]
[1758561347005,0.10370298,112370.0,112360.0,1.10853708]
[1758561347196,0.07898996,112370.0,112360.0,1.10853708]
[1758561347396,0.55391523,112370.0,112360.0,1.10853708]
[1758561349510,0.55391523,112370.0,112360.0,1.10841708]
[1758561349695,0.46499603,112370.0,112360.0,1.10841708]
[1758561350205,0.55391523,112370.0,112360.0,1.94965708]
[1758561350510,0.55391523,112370.0,112360.0,1.55786056]
[1758561350806,0.55391523,112370.0,112360.0,1.94965708]
[1758561352909,0.55391523,112370.0,112360.0,1.10841708]
[1758561353301,0.55391523,112370.0,112360.0,1.94945708]
[1758561353897,0.46499603,112370.0,112360.0,1.94945708]
[1758561354404,0.10419603,112370.0,112360.0,2.31025708]
[1758561354704,0.12112517,112370.0,112360.0,1.94945708]
[1758561354910,0.03220607,112370.0,112360.0,1.94945708]
[1758561355913,0.03220607,112370.0,112360.0,1.10841708]
[1758561356608,0.03220607,112370.0,112360.0,1.94925708]
[1758561358013,0.03220607,112370.0,112360.0,1.94913708]
[1758561358509,0.007,112370.0,112360.0,1.94913708]
[1758561359414,0.007,112370.0,112360.0,1.94905708]
[1758561360515,0.007,112370.0,112360.0,2.7016536]
[1758561361011,0.007,112370.0,112360.0,2.30985708]
[1758561361207,0.007,112370.0,112360.0,1.46921708]
[1758561361410,0.007,112370.0,112360.0,2.30973708]
[1758561362317,0.3608,112390.0,112380.0,0.0889114]
[1758561362521,0.49251454,112400.0,112390.0,0.1235335]
[1758561362819,0.51774193,112400.0,112390.0,0.1235335]
[1758561363616,0.54947559,112400.0,112390.0,0.1245335]
[1758561363819,0.55547559,112400.0,112390.0,0.1245335]
[1758561364914,0.56847559,112400.0,112390.0,0.1285335]
[1758561365713,0.64039664,112400.0,112390.0,0.1285335]
[1758561367124,0.64039664,112400.0,112390.0,0.03963]
[1758561367323,1.03219316,112400.0,112390.0,0.03963]
[1758561367821,1.03219316,112400.0,112390.0,0.1285334]
[1758561368519,0.61866664,112400.0,112390.0,0.4785334]
[1758561368716,0.61866664,112400.0,112390.0,0.87032992]
[1758561368920,0.64039664,112400.0,112390.0,0.1285334]
[1758561369122,1.0004595,112400.0,112390.0,0.03963]
[1758561369422,0.64039664,112400.0,112390.0,0.03963]
[1758561369724,1.03219316,112400.0,112390.0,0.03963]
[1758561370323,1.03219316,112400.0,112390.0,0.1285334]
[1758561370622,1.03219316,112400.0,112390.0,0.03963]
[1758561370921,1.03219316,112400.0,112390.0,0.1285334]
[1758561371323,1.03219316,112400.0,112390.0,0.03963]
[1758561371522,1.87211316,112400.0,112390.0,0.03963]
[1758561372631,2.0680356,112400.0,112390.0,0.04003]
[1758561372922,2.3180356,112400.0,112390.0,0.04003]
[1758561373117,2.3180356,112400.0,112390.0,0.03963]
[1758561373318,2.3180356,112400.0,112390.0,0.04003]
[1758561373523,2.28630194,112400.0,112390.0,0.04003]
[1758561375516,1.44638194,112400.0,112390.0,0.04003]
[1758561375717,1.15252246,112400.0,112390.0,0.42279288]
[1758561376024,1.99216246,112400.0,112390.0,0.42279288]
[1758561376417,2.28602194,112400.0,112390.0,0.1289334]
[1758561376824,2.28602194,112400.0,112390.0,0.42279288]
[1758561377121,2.28602194,112400.0,112390.0,0.33388948]
[1758561378219,2.28602194,112400.0,112390.0,0.42279288]
[1758561378416,1.99216246,112400.0,112390.0,0.42279288]
[1758561378919,2.28602194,112400.0,112390.0,0.33388948]
[1758561379113,2.28594194,112400.0,112390.0,0.33388948]
[1758561379316,2.28594194,112400.0,112390.0,0.04003]
[1758561380320,2.28594194,112400.0,112390.0,0.33388948]
[1758561380820,2.28594194,112400.0,112390.0,0.04003]
[1758561381524,2.28594194,112400.0,112390.0,0.02728]
[1758561382127,1.44630194,112400.0,112390.0,0.04064]
[1758561382428,2.28558194,112400.0,112390.0,0.04064]
[1758561382825,2.28554194,112400.0,112390.0,0.1295435]
[1758561384132,2.28554194,112400.0,112390.0,0.04064]
[1758561384425,1.44630194,112400.0,112390.0,0.1295436]
[1758561384623,1.44630194,112400.0,112390.0,0.42340308]
[1758561384624,1.74160246,112400.0,112390.0,0.42340308]
[1758561384927,1.741591,112400.0,112390.0,0.04064]
[1758561385230,1.741591,112400.0,112390.0,0.33449948]
[1758561385620,2.03545048,112400.0,112390.0,0.04064]
[1758561386129,2.03545048,112400.0,112390.0,0.04024]
[1758561386427,2.03545048,112400.0,112390.0,0.04064]
[1758561387827,1.44773152,112400.0,112390.0,0.04064]
[1758561388031,2.03545048,112400.0,112390.0,0.04064]
[1758561388231,2.06718414,112400.0,112390.0,0.04064]
[1758561389631,1.22802414,112400.0,112390.0,0.04064]
[1758561389932,0.93416466,112400.0,112390.0,0.42340298]
[1758561390132,1.77308466,112400.0,112390.0,0.42340298]
[1758561390331,1.77308466,112400.0,112390.0,0.33449948]
[1758561390526,2.06694414,112400.0,112390.0,0.04064]
[1758561391628,2.06694414,112400.0,112390.0,0.04024]
[1758561391932,2.11454463,112400.0,112390.0,0.04064]
[1758561392627,2.11877463,112400.0,112390.0,0.0054]
[1758561392832,2.63090045,112400.0,112390.0,0.0054]
[1758561393227,2.63090045,112400.0,112390.0,0.005]
[1758561393426,2.63090045,112400.0,112390.0,0.0054]
[1758561393629,0.1110418,112380.0,112370.0,0.05470755]
[1758561393829,2.31605344,112380.0,112370.0,0.05470755]
[1758561394328,1.69657773,112380.0,112370.0,0.14362725]
[1758561394533,1.99043721,112380.0,112370.0,0.34856703]
[1758561394834,1.99043721,112380.0,112370.0,0.34956703]
[1758561395027,1.99343721,112380.0,112370.0,0.34956703]
[1758561395225,1.15471721,112380.0,112370.0,0.34956703]
[1758561395528,1.99335721,112380.0,112370.0,0.34956703]
[1758561396236,2.00035721,112380.0,112370.0,0.35256703]
[1758561397235,1.70649773,112380.0,112370.0,0.35256703]
[1758561397437,1.16171721,112380.0,112370.0,0.44148673]
[1758561397624,1.70649773,112380.0,112370.0,0.44148673]
[1758561397935,2.00035721,112380.0,112370.0,0.35256703]
[1758561398134,2.00035721,112380.0,112370.0,0.44148673]
[1758561398435,2.00035721,112380.0,112370.0,0.69148673]
[1758561398436,1.59533593,112380.0,112370.0,0.69148673]
[1758561398637,0.84572763,112380.0,112370.0,0.69148673]
[1758561398936,0.86785763,112380.0,112370.0,0.69148673]
[1758561399326,0.86785763,112380.0,112370.0,0.44148673]
[1758561399727,1.16171711,112380.0,112370.0,0.44148673]
[1758561400834,0.86785763,112380.0,112370.0,0.44148673]
[1758561401030,0.86785763,112380.0,112370.0,0.44148663]
[1758561401537,1.16171711,112380.0,112370.0,0.44148663]
[1758561401731,1.16171711,112380.0,112370.0,0.35256703]
[1758561401931,0.86785763,112380.0,112370.0,0.05870755]
[1758561402126,1.45557659,112380.0,112370.0,0.35176703]
[1758561402326,1.16171711,112380.0,112370.0,0.35216703]
[1758561402831,1.16171711,112380.0,112370.0,0.05830755]
[1758561403231,1.16171711,112380.0,112370.0,0.35216703]
[1758561406038,1.16171711,112380.0,112370.0,0.44108673]
[1758561407843,0.86785763,112380.0,112370.0,0.44108673]
[1758561408043,1.16171711,112380.0,112370.0,0.44108673]
[1758561409340,1.16171711,112380.0,112370.0,0.35216703]
[1758561411046,0.86785763,112380.0,112370.0,0.35216703]
[1758561411247,1.16171711,112380.0,112370.0,0.35216703]
[1758561412347,1.16171711,112380.0,112370.0,0.44108663]
[1758561412844,0.39601593,112380.0,112370.0,1.04494611]
[1758561413145,0.12412753,112380.0,112370.0,1.04494611]
[1758561413334,0.14625753,112380.0,112370.0,0.75108663]
[1758561413538,0.14625753,112380.0,112370.0,1.58900663]
[1758561414940,0.14625753,112380.0,112370.0,1.50008703]
[1758561415254,0.50705753,112380.0,112370.0,0.75108663]
[1758561415752,0.50705753,112380.0,112370.0,1.29502715]
[1758561415952,0.50705753,112380.0,112370.0,1.58888663]
[1758561417849,0.50705753,112380.0,112370.0,0.75108663]
[1758561418049,0.50705753,112380.0,112370.0,1.58876663]
[1758561419040,0.50705753,112380.0,112370.0,1.49984703]
[1758561419243,0.80091701,112380.0,112370.0,1.49984703]
[1758561419538,0.80091701,112380.0,112370.0,0.66216703]
[1758561419739,1.09477649,112380.0,112370.0,0.05830755]
[1758561419944,0.80091701,112380.0,112370.0,0.35216703]
[1758561420245,1.63847701,112380.0,112370.0,0.35176703]
[1758561420438,1.63847701,112380.0,112370.0,0.35216703]
[1758561420949,1.63847701,112380.0,112370.0,0.44108653]
[1758561421149,0.80091701,112380.0,112370.0,0.05830755]
[1758561421347,1.63843701,112380.0,112370.0,0.35216703]
[1758561421746,1.34457753,112380.0,112370.0,0.35216703]
[1758561421946,1.63843701,112380.0,112370.0,0.35216703]
[1758561422442,1.63843701,112380.0,112370.0,0.44108653]
[1758561422443,0.71200541,112380.0,112370.0,0.44108653]
[1758561422648,0.80091701,112380.0,112370.0,0.44108653]
[1758561423343,0.80091701,112380.0,112370.0,0.35216703]
[1758561423750,0.80091701,112380.0,112370.0,0.44108653]
[1758561424849,0.41814593,112380.0,112370.0,0.44108653]
[1758561425250,0.71200541,112380.0,112370.0,0.44108653]
[1758561425449,0.80091701,112380.0,112370.0,0.14722705]
[1758561425651,0.80091701,112380.0,112370.0,0.35216703]
[1758561426056,0.80091701,112380.0,112370.0,0.44108653]
[1758561426361,0.80091701,112380.0,112370.0,0.35216703]
[1758561428959,0.80091701,112380.0,112370.0,0.05830755]
[1758561429160,0.80091701,112380.0,112370.0,0.35216703]
[1758561430055,0.80091701,112380.0,112370.0,0.05830755]
[1758561430256,0.80091701,112380.0,112370.0,0.35216703]
[1758561430661,0.80091701,112380.0,112370.0,0.44108653]
[1758561430960,0.41814593,112380.0,112370.0,0.44108653]
[1758561431151,0.71200541,112380.0,112370.0,0.44108653]
[1758561431460,0.80091701,112380.0,112370.0,0.44108653]
[1758561431850,0.50705753,112380.0,112370.0,0.44108653]
[1758561432567,0.50705753,112380.0,112370.0,0.53907763]
[1758561433666,0.41814593,112380.0,112370.0,0.53907763]
[1758561433872,0.39601593,112380.0,112370.0,0.53907763]
[1758561434077,0.48492743,112380.0,112370.0,0.53907763]
[1758561434368,0.50778743,112380.0,112370.0,0.53907763]
[1758561435661,0.48492743,112380.0,112370.0,0.53907763]
[1758561435866,0.39601593,112380.0,112370.0,0.83907763]
[1758561436066,0.39601593,112380.0,112370.0,1.08907763]
[1758561436573,0.03521593,112380.0,112370.0,1.08907763]
[1758561436870,0.03521593,112380.0,112370.0,0.69722705]
[1758561437071,0.03521593,112380.0,112370.0,1.08907763]
[1758561439972,0.03521593,112380.0,112370.0,1.44987763]
[1758561440370,0.01,112380.0,112370.0,1.44987763]
[1758561440563,0.45536105,112400.0,112390.0,0.1243946]
[1758561440769,0.48048111,112400.0,112390.0,0.81624518]
[1758561440969,0.45784111,112400.0,112390.0,0.81624518]
[1758561441170,0.09704111,112400.0,112390.0,0.81624518]
[1758561441373,0.09704111,112400.0,112390.0,0.4243946]
[1758561441676,0.02512006,112400.0,112390.0,0.81624518]
[1758561441865,0.04012006,112400.0,112390.0,0.82024518]
[1758561442264,0.04012006,112400.0,112390.0,0.4283946]
[1758561442570,0.06876006,112400.0,112390.0,1.65768518]
[1758561442768,0.04612006,112400.0,112390.0,1.65768518]
[1758561442970,0.04612006,112400.0,112390.0,0.82124518]
[1758561443276,0.04612006,112400.0,112390.0,1.65764518]
[1758561444570,0.04612006,112400.0,112390.0,2.03634103]
[1758561445277,0.021,112400.0,112390.0,2.03634103]
[1758561446580,0.021,112400.0,112390.0,2.03622103]
[1758561447873,0.021,112400.0,112390.0,1.19994103]
[1758561448179,0.021,112400.0,112390.0,2.03606103]
[1758561449186,0.021,112400.0,112390.0,2.03598103]
[1758561450685,0.49292405,112420.0,112410.0,0.51732928]
[1758561450881,0.51797467,112420.0,112410.0,0.9614387]
[1758561451084,0.5179746,112420.0,112410.0,0.9614387]
[1758561451483,0.54794382,112420.0,112410.0,0.9614387]
[1758561451681,0.54794382,112420.0,112410.0,0.1254787]
[1758561451878,0.57494382,112420.0,112410.0,0.1304787]
[1758561452280,0.10238762,112420.0,112410.0,0.52232928]
[1758561452584,0.55206842,112420.0,112410.0,0.52232928]
[1758561452885,0.57493842,112420.0,112410.0,0.52232928]
[1758561453287,0.64702444,112420.0,112410.0,2.85812928]
[1758561453881,0.62665659,112420.0,112410.0,1.64827532]
[1758561454088,0.62661659,112420.0,112410.0,1.64827532]
[1758561454481,0.62661659,112420.0,112410.0,2.3501259]
[1758561454482,0.44277977,112420.0,112410.0,2.3501259]
[1758561454684,0.44277977,112420.0,112410.0,3.1858459]
[1758561455080,0.41281055,112420.0,112410.0,3.1858459]
[1758561455384,0.05201055,112420.0,112410.0,1.95827532]
[1758561455577,0.05201055,112420.0,112410.0,2.3501259]
[1758561455777,0.14089135,112420.0,112410.0,2.3501259]
[1758561455989,0.14089135,112420.0,112410.0,3.1857659]
[1758561456289,0.14089135,112420.0,112410.0,2.3501259]
[1758561456684,0.14089135,112420.0,112410.0,3.1856859]
[1758561456891,0.14089135,112420.0,112410.0,2.3501259]
[1758561457093,0.14089135,112420.0,112410.0,3.1856859]
[1758561458585,0.2126574,112420.0,112410.0,3.1856859]
[1758561458782,0.2126574,112420.0,112410.0,2.3501259]
[1758561458983,0.2126574,112420.0,112410.0,3.1855659]
[1758561459290,0.2126574,112420.0,112410.0,2.3501259]
[1758561459679,0.2126574,112420.0,112410.0,3.1855259]
[1758561462891,0.1237766,112420.0,112410.0,3.1855259]
[1758561463096,0.2126575,112420.0,112410.0,3.1855259]
[1758561464194,0.2126575,112420.0,112410.0,3.1853259]
[1758561466496,0.2126575,112420.0,112410.0,2.79347532]
[1758561466696,0.2126575,112420.0,112410.0,3.1853259]
[1758561467183,0.1237766,112420.0,112410.0,3.1853259]
[1758561467387,0.1237766,112420.0,112410.0,2.79347532]
[1758561467590,0.1237766,112420.0,112410.0,3.1853259]
[1758561467890,0.2126575,112420.0,112410.0,3.1853259]
[1758561468085,0.1237766,112420.0,112410.0,3.5461259]
[1758561468492,0.1237766,112420.0,112410.0,3.1853259]
[1758561468891,0.2126576,112420.0,112410.0,3.5461259]
[1758561469092,0.2126576,112420.0,112410.0,3.1853259]
[1758561469690,0.2126576,112420.0,112410.0,2.3501259]
[1758561469896,0.2126576,112420.0,112410.0,3.1850859]
[1758561470097,0.2126576,112420.0,112410.0,1.95827532]
[1758561470296,0.2126576,112420.0,112410.0,3.1849659]
[1758561473898,0.2126576,112420.0,112410.0,3.1847659]
[1758561474896,0.5734576,112420.0,112410.0,2.3501259]
[1758561475101,1.21530818,112420.0,112410.0,2.39398662]
[1758561475400,1.21530818,112420.0,112410.0,2.45438662]
[1758561476000,1.21530818,112420.0,112410.0,1.61978662]
[1758561476301,1.28500331,112420.0,112410.0,0.04561662]
[1758561476496,1.28923331,112420.0,112410.0,0.02319662]
[1758561476696,1.28923331,112420.0,112410.0,0.02279662]
[1758561476895,1.28923331,112420.0,112410.0,0.04475662]
[1758561478001,1.28923331,112420.0,112410.0,0.02319662]
[1758561478502,1.28923331,112420.0,112410.0,0.0054]
[1758561478801,1.28923331,112420.0,112410.0,0.00437501]
[1758561479799,1.27123331,112420.0,112410.0,0.0014]
[1758561480003,1.27123331,112420.0,112410.0,0.0044]
[1758561480004,1.28423331,112420.0,112410.0,0.0044]
[1758561480304,2.11867331,112420.0,112410.0,0.02596]
[1758561480905,2.11867331,112420.0,112410.0,0.0044]
[1758561481600,2.11863331,112420.0,112410.0,0.02596]
[1758561481905,2.11863331,112420.0,112410.0,0.0044]
[1758561482294,1.72251273,112420.0,112410.0,0.03993]
[1758561482493,0.88815273,112420.0,112410.0,0.128819]
[1758561482700,0.62221828,112420.0,112410.0,1.35498958]
[1758561482902,0.60015828,112420.0,112410.0,1.92498958]
[1758561483103,0.2076576,112420.0,112410.0,1.92498958]
[1758561484407,0.2075776,112420.0,112410.0,1.92498958]
[1758561484606,0.1985776,112420.0,112410.0,1.92398958]
[1758561484807,0.1985776,112420.0,112410.0,1.92498958]
[1758561484808,0.17964705,112420.0,112410.0,1.92498958]
[1758561485105,0.56250705,112420.0,112410.0,0.37766132]
[1758561485295,2.07033831,112420.0,112410.0,0.04369132]
[1758561485494,2.08041276,112420.0,112410.0,0.02213132]
[1758561485708,2.08341276,112420.0,112410.0,0.02173132]
[1758561485906,2.06747717,112420.0,112410.0,0.02173132]
[1758561486101,2.06747717,112420.0,112410.0,0.02213132]
[1758561486603,2.06747717,112420.0,112410.0,0.0044]
[1758561486806,2.08341276,112420.0,112410.0,0.0044]
[1758561487203,2.03577763,112420.0,112410.0,0.004]
[1758561487411,2.08313077,112420.0,112410.0,0.0044]
[1758561487710,1.69128019,112420.0,112410.0,0.0044]
[1758561488009,2.08313077,112420.0,112410.0,0.0044]
[1758561489503,2.08305077,112420.0,112410.0,0.0044]
[1758561489703,1.20149763,112420.0,112410.0,0.0044]
[1758561489909,2.03557763,112420.0,112410.0,0.0044]
[1758561490110,1.20149763,112420.0,112410.0,0.0044]
[1758561490409,2.08302163,112420.0,112410.0,0.0044]
[1758561491612,1.24898163,112420.0,112410.0,0.0044]
[1758561491803,2.08298163,112420.0,112410.0,0.0044]
[1758561492608,2.27877645,112420.0,112410.0,0.0044]
[1758561493906,2.23121245,112420.0,112410.0,0.0044]
[1758561496415,2.25622123,112420.0,112410.0,0.0044]
[1758561497216,1.66849583,112420.0,112410.0,0.0044]
[1758561497415,2.25614123,112420.0,112410.0,0.0044]
[1758561498218,0.83465583,112420.0,112410.0,0.0044]
[1758561498517,2.25606123,112420.0,112410.0,0.0044]
[1758561499012,1.17222123,112420.0,112410.0,0.0044]
[1758561499219,1.70497853,112420.0,112410.0,0.6732815]
[1758561499411,1.73663147,112420.0,112410.0,0.6732815]
[1758561500818,0.60908877,112420.0,112410.0,0.6732815]
[1758561501019,1.73663147,112420.0,112410.0,0.6732815]
[1758561503325,1.78411049,112420.0,112410.0,0.6732815]
[1758561503819,1.73663147,112420.0,112410.0,0.6732815]
[1758561504017,0.90291147,112420.0,112410.0,0.6732815]
[1758561504218,0.48855483,112420.0,112410.0,0.9032815]
[1758561504419,1.32207483,112420.0,112410.0,0.9032815]
[1758561504816,0.96127483,112420.0,112410.0,0.9032815]
[1758561505216,0.57743573,112420.0,112410.0,0.9032815]
[1758561505821,0.57743573,112420.0,112410.0,0.6732815]
[1758561507224,0.21663573,112420.0,112410.0,0.6732815]
[1758561507413,0.21663573,112420.0,112410.0,0.3794588]
[1758561507618,0.57743573,112420.0,112410.0,0.6732815]
[1758561508019,0.21663573,112420.0,112410.0,0.6732815]
[1758561508219,0.10569483,112420.0,112410.0,0.6732815]